[Event "Blixt-SM 2025"]
[Site "Norrköping, Sweden"]
[Date "2025.09.26"]
[Round "3.3"]
[White "Johnson, Daniel"]
[Black "Muntean, Victor"]
[Result "0-1"]
[TimeControl "3 min + 2 sec/move"]
[WhiteElo "2177"]
[BlackElo "2151"]

1. e4 {[%clk 00:03:00]} {[%emt 00:00:03]} e5 {[%clk 00:03:04]} {[%emt
00:00:01]} 2. Nc3 {[%clk 00:03:01]} Nf6 {[%clk 00:03:05]} {[%emt 00:00:02]} 3.
Bc4 {[%clk 00:03:01]} Bc5 {[%clk 00:02:52]} {[%emt 00:00:15]} 4. d3 {[%clk
00:03:02]} {[%emt 00:00:01]} c6 {[%clk 00:02:49]} {[%emt 00:00:06]} 5. f4
{[%clk 00:02:54]} {[%emt 00:00:09]} d5 {[%clk 00:02:00]} {[%emt 00:00:51]} 6.
exd5 {[%clk 00:02:29]} {[%emt 00:00:27]} cxd5 {[%clk 00:01:59]} {[%emt
00:00:02]} 7. Bb5+ {[%clk 00:02:22]} {[%emt 00:00:10]} Nc6 {[%clk 00:01:56]}
{[%emt 00:00:06]} 8. fxe5 {[%clk 00:02:08]} {[%emt 00:00:16]} Qb6 {[%clk
00:01:15]} {[%emt 00:00:43]} 9. Nf3 {[%clk 00:01:59]} {[%emt 00:00:11]} Ng4
{[%clk 00:00:56]} {[%emt 00:00:21]} 10. d4 {[%clk 00:01:54]} {[%emt 00:00:07]}
Bb4 {[%clk 00:00:57]} 11. Qd3 {[%clk 00:01:25]} {[%emt 00:00:31]} f6 {[%clk
00:00:36]} {[%emt 00:00:22]} 12. Bd2 {[%clk 00:01:11]} {[%emt 00:00:16]} Bxc3
{[%clk 00:00:34]} {[%emt 00:00:05]} 13. Bxc3 {[%clk 00:01:09]} {[%emt
00:00:03]} fxe5 {[%clk 00:00:35]} {[%emt 00:00:02]} 14. Nxe5 {[%clk 00:00:49]}
{[%emt 00:00:22]} O-O {[%clk 00:00:25]} {[%emt 00:00:11]} 15. O-O-O {[%clk
00:00:30]} {[%emt 00:00:21]} Ncxe5 {[%clk 00:00:14]} {[%emt 00:00:13]} 16. dxe5
{[%clk 00:00:29]} {[%emt 00:00:03]} Be6 {[%clk 00:00:15]} {[%emt 00:00:01]} 17.
Bd4 {[%clk 00:00:18]} {[%emt 00:00:13]} Qa5 {[%clk 00:00:16]} 18. a4 {[%clk
00:00:04]} {[%emt 00:00:16]} a6 {[%clk 00:00:18]} {[%emt 00:00:01]} 19. Bc3
{[%clk 00:00:05]} Qc7 {[%clk 00:00:16]} {[%emt 00:00:04]} 20. h3 {[%clk
00:00:04]} {[%emt 00:00:03]} Nf2 {[%clk 00:00:17]} {[%emt 00:00:02]} 21. Qg3
{[%clk 00:00:03]} {[%emt 00:00:03]} axb5 {[%clk 00:00:17]} 22. Rhf1 {[%clk
00:00:04]} {[%emt 00:00:01]} Nxd1 {[%clk 00:00:18]} {[%emt 00:00:02]} 23. Rxd1
{[%clk 00:00:04]} {[%emt 00:00:02]} Rxa4 {[%clk 00:00:17]} {[%emt 00:00:02]} 24.
b3 {[%clk 00:00:03]} {[%emt 00:00:03]} Raf4 {[%clk 00:00:14]} {[%emt 00:00:05]}
25. Kb2 {[%clk 00:00:03]} {[%emt 00:00:03]} Rf2 {[%clk 00:00:13]} {[%emt
00:00:02]} 26. Bd2 {[%clk 00:00:03]} {[%emt 00:00:02]} R8f5 {[%clk 00:00:12]}
{[%emt 00:00:03]} 27. Kb1 {[%clk 00:00:03]} {[%emt 00:00:02]} Qxe5 {[%clk
00:00:12]} 28. Qd3 {[%clk 00:00:04]} {[%emt 00:00:01]} Qe2 {[%clk 00:00:12]}
{[%emt 00:00:03]} 29. Bc3 {[%clk 00:00:03]} {[%emt 00:00:03]} Qxd3 {[%clk
00:00:12]} 30. Rxd3 {[%clk 00:00:03]} {[%emt 00:00:02]} Rxg2 {[%clk 00:00:13]}
0-1

[Event "Blixt-SM 2025"]
[Site "Norrköping, Sweden"]
[Date "2025.09.26"]
[Round "6.5"]
[White "Berovski, Krum"]
[Black "Thyberg, Andre"]
[Result "1-0"]
[TimeControl "3 min + 2 sec/move"]
[WhiteElo "2344"]
[BlackElo "2023"]

1. d4 {[%clk 00:03:02]} {[%emt 00:00:01]} Nf6 {[%clk 00:03:03]} {[%emt
00:00:01]} 2. c4 {[%clk 00:03:03]} c5 {[%clk 00:03:05]} 3. d5 {[%clk 00:03:04]}
{[%emt 00:00:02]} b5 {[%clk 00:03:06]} 4. cxb5 {[%clk 00:03:05]} {[%emt
00:00:01]} a6 {[%clk 00:03:08]} 5. bxa6 {[%clk 00:03:06]} {[%emt 00:00:01]}
Bxa6 {[%clk 00:03:09]} 6. Nc3 {[%clk 00:03:06]} {[%emt 00:00:02]} g6 {[%clk
00:03:09]} {[%emt 00:00:01]} 7. g3 {[%clk 00:03:07]} Bg7 {[%clk 00:03:09]}
{[%emt 00:00:02]} 8. Bg2 {[%clk 00:03:08]} d6 {[%clk 00:03:11]} 9. Nh3 {[%clk
00:03:09]} {[%emt 00:00:02]} Nbd7 {[%clk 00:03:07]} {[%emt 00:00:06]} 10. O-O
{[%clk 00:03:08]} {[%emt 00:00:02]} O-O {[%clk 00:03:00]} {[%emt 00:00:09]} 11.
Qc2 {[%clk 00:03:04]} {[%emt 00:00:06]} Ng4 {[%clk 00:02:50]} {[%emt 00:00:13]}
12. Nf4 {[%clk 00:02:57]} {[%emt 00:00:08]} Nge5 {[%clk 00:02:47]} {[%emt
00:00:05]} 13. b3 {[%clk 00:02:55]} {[%emt 00:00:05]} Qc7 {[%clk 00:02:25]}
{[%emt 00:00:24]} 14. Bd2 {[%clk 00:02:52]} {[%emt 00:00:05]} Rfb8 {[%clk
00:02:25]} 15. Rab1 {[%clk 00:02:53]} {[%emt 00:00:01]} Ra7 {[%clk 00:02:13]}
{[%emt 00:00:15]} 16. a4 {[%clk 00:02:48]} {[%emt 00:00:07]} Rab7 {[%clk
00:01:59]} {[%emt 00:00:15]} 17. Na2 {[%clk 00:02:47]} {[%emt 00:00:03]} Nf6
{[%clk 00:01:46]} {[%emt 00:00:16]} 18. Bc3 {[%clk 00:02:36]} {[%emt 00:00:12]}
Ned7 {[%clk 00:01:41]} {[%emt 00:00:08]} 19. h4 {[%clk 00:02:30]} {[%emt
00:00:08]} h5 {[%clk 00:01:39]} {[%emt 00:00:04]} 20. Rfe1 {[%clk 00:02:19]}
{[%emt 00:00:12]} Ng4 {[%clk 00:01:25]} {[%emt 00:00:17]} 21. Bxg7 {[%clk
00:01:34]} {[%emt 00:00:47]} Kxg7 {[%clk 00:01:26]} {[%emt 00:00:02]} 22. b4
{[%clk 00:01:19]} {[%emt 00:00:17]} cxb4 {[%clk 00:01:03]} {[%emt 00:00:25]} 23.
Qxc7 {[%clk 00:01:19]} {[%emt 00:00:03]} Rxc7 {[%clk 00:01:04]} 24. Rxb4 {[%clk
00:01:20]} Rxb4 {[%clk 00:00:55]} {[%emt 00:00:11]} 25. Nxb4 {[%clk 00:01:21]}
{[%emt 00:00:01]} Bb7 {[%clk 00:00:46]} {[%emt 00:00:11]} 26. a5 {[%clk
00:01:16]} {[%emt 00:00:06]} Nc5 {[%clk 00:00:47]} 27. Rc1 {[%clk 00:01:03]}
{[%emt 00:00:15]} Ne5 {[%clk 00:00:34]} {[%emt 00:00:15]} 28. Bf1 {[%clk
00:00:43]} {[%emt 00:00:23]} Na6 {[%clk 00:00:35]} {[%emt 00:00:01]} 29. Rxc7
{[%clk 00:00:43]} {[%emt 00:00:02]} Nxc7 {[%clk 00:00:36]} {[%emt 00:00:01]} 30.
e4 {[%clk 00:00:42]} {[%emt 00:00:03]} Nf3+ {[%clk 00:00:28]} {[%emt 00:00:10]}
31. Kg2 {[%clk 00:00:42]} {[%emt 00:00:01]} Nd4 {[%clk 00:00:25]} {[%emt
00:00:05]} 32. a6 {[%clk 00:00:42]} {[%emt 00:00:03]} Ba8 {[%clk 00:00:27]} 33.
Bc4 {[%clk 00:00:31]} {[%emt 00:00:13]} Kf6 {[%clk 00:00:21]} {[%emt 00:00:08]}
34. Nfd3 {[%clk 00:00:32]} e6 {[%clk 00:00:15]} {[%emt 00:00:08]} 35. Kf1
{[%clk 00:00:21]} {[%emt 00:00:13]} exd5 {[%clk 00:00:15]} {[%emt 00:00:02]} 36.
Nxd5+ {[%clk 00:00:17]} {[%emt 00:00:05]} Nxd5 {[%clk 00:00:14]} {[%emt
00:00:03]} 37. Bxd5 {[%clk 00:00:16]} {[%emt 00:00:03]} Bxd5 38. exd5 {[%clk
00:00:17]} Nb5 {[%clk 00:00:13]} {[%emt 00:00:01]} 39. Kg2 {[%clk 00:00:14]}
{[%emt 00:00:06]} Ke7 {[%clk 00:00:11]} {[%emt 00:00:04]} 40. Kf3 {[%clk
00:00:14]} {[%emt 00:00:01]} Kd7 {[%clk 00:00:12]} 41. Kf4 {[%clk 00:00:11]}
{[%emt 00:00:06]} f6 {[%clk 00:00:12]} {[%emt 00:00:02]} 42. f3 {[%clk
00:00:11]} {[%emt 00:00:02]} Kc7 {[%clk 00:00:13]} {[%emt 00:00:02]} 43. g4
{[%clk 00:00:12]} Nc3 {[%clk 00:00:12]} {[%emt 00:00:02]} 44. Nb4 {[%clk
00:00:12]} {[%emt 00:00:03]} Kb6 {[%clk 00:00:14]} 45. gxh5 {[%clk 00:00:11]}
{[%emt 00:00:03]} gxh5 {[%clk 00:00:14]} {[%emt 00:00:01]} 46. Kf5 {[%clk
00:00:13]} Nb5 {[%clk 00:00:04]} {[%emt 00:00:13]} 47. Kxf6 {[%clk 00:00:10]}
{[%emt 00:00:05]} Kc5 {[%clk 00:00:06]} 48. Nc6 {[%clk 00:00:07]} {[%emt
00:00:05]} Kxd5 {[%clk 00:00:03]} {[%emt 00:00:04]} 49. a7 {[%clk 00:00:08]}
{[%emt 00:00:01]} Nxa7 {[%clk 00:00:04]} 50. Nxa7 {[%clk 00:00:10]} Kd4 {[%clk
00:00:04]} {[%emt 00:00:01]} 51. Kg5 {[%clk 00:00:08]} {[%emt 00:00:04]} Ke3
{[%clk 00:00:04]} {[%emt 00:00:02]} 52. f4 {[%clk 00:00:10]} d5 {[%clk
00:00:05]} {[%emt 00:00:01]} 53. Nb5 {[%clk 00:00:11]} {[%emt 00:00:01]} Ke4
{[%clk 00:00:06]} 54. f5 {[%clk 00:00:12]} {[%emt 00:00:01]} Ke5 {[%clk
00:00:07]} 55. f6 {[%clk 00:00:13]} Ke6 {[%clk 00:00:09]} 56. Kg6 {[%clk
00:00:14]} {[%emt 00:00:01]} 1-0

[ePGN "0.1;DGT LiveChess/2.2.7"]

[Event "Blixt-SM 2025"]
[Site "Norrköping, Sweden"]
[Date "2025.09.26"]
[Round "8.1"]
[White "Seo, Jung Min"]
[Black "Persson, Richard"]
[Result "1-0"]
[TimeControl "3 min + 2 sec/move"]
[WhiteTitle "IM"]
[BlackTitle "CM"]
[WhiteElo "2480"]
[BlackElo "2106"]

1. e4 {[%clk 00:03:04]} {[%emt 00:01:46]} c6 {[%clk 00:03:01]} {[%emt
00:00:03]} 2. d4 {[%clk 00:03:05]} d5 {[%clk 00:03:01]} {[%emt 00:00:02]} 3. e5
{[%clk 00:03:06]} Bf5 {[%clk 00:03:00]} {[%emt 00:00:03]} 4. h4 {[%clk
00:03:07]} f6 {[%clk 00:03:00]} {[%emt 00:00:03]} 5. Nf3 {[%clk 00:02:59]}
{[%emt 00:00:09]} c5 {[%clk 00:02:29]} {[%emt 00:00:33]} 6. dxc5 {[%clk
00:02:58]} {[%emt 00:00:04]} Nc6 {[%clk 00:02:26]} {[%emt 00:00:05]} 7. Bb5
{[%clk 00:02:39]} {[%emt 00:00:21]} e6 {[%clk 00:02:01]} {[%emt 00:00:27]} 8.
Be3 {[%clk 00:02:26]} {[%emt 00:00:15]} Nh6 {[%clk 00:01:49]} {[%emt 00:00:14]}
9. Nd4 {[%clk 00:01:58]} {[%emt 00:00:30]} Qc7 {[%clk 00:01:15]} {[%emt
00:00:36]} 10. exf6 {[%clk 00:01:38]} {[%emt 00:00:22]} O-O-O {[%clk 00:01:06]}
{[%emt 00:00:10]} 11. Bxc6 {[%clk 00:01:38]} {[%emt 00:00:03]} bxc6 {[%clk
00:01:03]} {[%emt 00:00:05]} 12. Nc3 {[%clk 00:01:02]} {[%emt 00:00:38]} gxf6
{[%clk 00:00:55]} {[%emt 00:00:09]} 13. Qd2 {[%clk 00:00:48]} {[%emt 00:00:17]}
Ng4 {[%clk 00:00:39]} {[%emt 00:00:17]} 14. Bf4 {[%clk 00:00:27]} {[%emt
00:00:24]} Ne5 {[%clk 00:00:31]} {[%emt 00:00:09]} 15. Nxf5 {[%clk 00:00:26]}
{[%emt 00:00:04]} exf5 {[%clk 00:00:31]} {[%emt 00:00:02]} 16. Na4 {[%clk
00:00:21]} {[%emt 00:00:06]} d4 {[%clk 00:00:26]} {[%emt 00:00:07]} 17. O-O-O
{[%clk 00:00:20]} {[%emt 00:00:04]} Rd5 {[%clk 00:00:26]} {[%emt 00:00:02]} 18.
Kb1 {[%clk 00:00:16]} {[%emt 00:00:05]} Be7 {[%clk 00:00:18]} {[%emt 00:00:10]}
19. Qb4 {[%clk 00:00:12]} {[%emt 00:00:07]} Rhd8 {[%clk 00:00:15]} {[%emt
00:00:04]} 20. Rhe1 {[%clk 00:00:13]} {[%emt 00:00:02]} R8d7 {[%clk 00:00:07]}
{[%emt 00:00:10]} 21. a3 {[%clk 00:00:14]} {[%emt 00:00:01]} d3 {[%clk
00:00:05]} {[%emt 00:00:04]} 22. cxd3 {[%clk 00:00:11]} {[%emt 00:00:05]} Qd8
{[%clk 00:00:03]} {[%emt 00:00:04]} 23. Bxe5 {[%clk 00:00:09]} {[%emt
00:00:03]} fxe5 {[%clk 00:00:04]} 24. Qc4 {[%clk 00:00:05]} {[%emt 00:00:07]}
Bf6 {[%clk 00:00:04]} {[%emt 00:00:02]} 25. Qa6+ {[%clk 00:00:05]} {[%emt
00:00:02]} Kb8 {[%clk 00:00:06]} 26. Qxc6 {[%clk 00:00:04]} {[%emt 00:00:03]}
Rb7 {[%clk 00:00:05]} {[%emt 00:00:02]} 27. Nc3 {[%clk 00:00:04]} {[%emt
00:00:02]} Rd4 {[%clk 00:00:06]} 28. Nb5 {[%clk 00:00:03]} {[%emt 00:00:04]} e4
{[%clk 00:00:06]} {[%emt 00:00:02]} 29. Nxd4 {[%clk 00:00:03]} {[%emt
00:00:02]} Bxd4 {[%clk 00:00:06]} {[%emt 00:00:02]} 30. Re2 {[%clk 00:00:04]}
{[%emt 00:00:01]} exd3 {[%clk 00:00:06]} {[%emt 00:00:02]} 31. Rxd3 {[%clk
00:00:05]} {[%emt 00:00:01]} Rd7 {[%clk 00:00:07]} 32. Red2 {[%clk 00:00:06]}
{[%emt 00:00:02]} f4 {[%clk 00:00:07]} {[%emt 00:00:02]} 33. Rb3+ {[%clk
00:00:07]} 1-0

[Event "Blixt-SM 2025"]
[Site "Norrköping, Sweden"]
[Date "2025.09.26"]
[Round "9.7"]
[White "Grahn, Vidar"]
[Black "Nygren, Kim"]
[Result "1-0"]
[TimeControl "3 min + 2 sec/move"]
[WhiteTitle "FM"]
[BlackTitle "CM"]
[WhiteElo "2236"]
[BlackElo "2173"]

1. d4 {[%clk 00:03:02]} {[%emt 00:00:01]} Nf6 {[%clk 00:03:02]} {[%emt
00:00:02]} 2. c4 {[%clk 00:03:04]} e6 {[%clk 00:03:04]} 3. g3 {[%clk 00:03:05]}
Bb4+ {[%clk 00:03:02]} {[%emt 00:00:04]} 4. Nd2 {[%clk 00:03:06]} d5 {[%clk
00:03:01]} {[%emt 00:00:04]} 5. Bg2 {[%clk 00:03:07]} O-O {[%clk 00:03:00]}
{[%emt 00:00:03]} 6. Ngf3 {[%clk 00:03:08]} a5 {[%clk 00:03:01]} {[%emt
00:00:01]} 7. O-O {[%clk 00:03:07]} {[%emt 00:00:03]} Be7 {[%clk 00:03:01]}
{[%emt 00:00:02]} 8. Qc2 {[%clk 00:02:56]} {[%emt 00:00:12]} Nc6 {[%clk
00:03:01]} {[%emt 00:00:02]} 9. a3 {[%clk 00:02:54]} {[%emt 00:00:05]} a4
{[%emt 00:00:09]} 10. cxd5 {[%clk 00:02:53]} {[%emt 00:00:02]} exd5 {[%clk
00:02:55]} {[%emt 00:00:02]} 11. Nb1 {[%clk 00:02:54]} Ne4 {[%clk 00:02:48]}
{[%emt 00:00:08]} 12. Nc3 {[%clk 00:02:52]} {[%emt 00:00:04]} Bf5 {[%clk
00:02:47]} {[%emt 00:00:04]} 13. Qd1 {[%clk 00:02:36]} {[%emt 00:00:18]} Nxc3
{[%clk 00:02:26]} {[%emt 00:00:23]} 14. bxc3 {[%clk 00:02:37]} {[%emt
00:00:02]} Bf6 {[%clk 00:02:27]} 15. Bf4 {[%clk 00:02:34]} {[%emt 00:00:04]} h6
{[%clk 00:02:23]} {[%emt 00:00:07]} 16. Ne5 {[%clk 00:02:34]} {[%emt 00:00:03]}
g5 {[%clk 00:02:15]} {[%emt 00:00:09]} 17. Nxc6 {[%clk 00:02:28]} {[%emt
00:00:08]} bxc6 {[%clk 00:02:16]} 18. Bd2 {[%clk 00:02:20]} {[%emt 00:00:10]}
Re8 {[%clk 00:02:12]} {[%emt 00:00:07]} 19. e3 {[%clk 00:02:19]} {[%emt
00:00:03]} Qd7 {[%clk 00:02:12]} {[%emt 00:00:02]} 20. Qe2 {[%clk 00:02:09]}
{[%emt 00:00:11]} Rab8 {[%clk 00:02:08]} {[%emt 00:00:06]} 21. c4 {[%clk
00:02:07]} {[%emt 00:00:04]} Bxd4 {[%clk 00:02:03]} {[%emt 00:00:07]} 22. Rad1
{[%clk 00:01:56]} {[%emt 00:00:11]} Bg7 {[%clk 00:02:01]} {[%emt 00:00:06]} 23.
cxd5 {[%clk 00:01:50]} {[%emt 00:00:08]} cxd5 {[%clk 00:02:02]} 24. Bb4 {[%clk
00:01:50]} {[%emt 00:00:02]} c6 {[%clk 00:01:44]} {[%emt 00:00:20]} 25. Rc1
{[%clk 00:01:49]} {[%emt 00:00:03]} Bg4 {[%clk 00:01:40]} {[%emt 00:00:06]} 26.
Qa6 {[%clk 00:01:49]} {[%emt 00:00:02]} Re6 {[%clk 00:01:17]} {[%emt 00:00:25]}
27. Qxa4 {[%clk 00:01:49]} {[%emt 00:00:02]} h5 {[%clk 00:01:04]} {[%emt
00:00:15]} 28. Bc5 {[%clk 00:01:48]} {[%emt 00:00:03]} Bf5 {[%clk 00:00:56]}
{[%emt 00:00:10]} 29. Rfd1 {[%clk 00:01:45]} {[%emt 00:00:04]} Qe8 {[%clk
00:00:48]} {[%emt 00:00:11]} 30. h4 {[%clk 00:01:39]} {[%emt 00:00:08]} gxh4
{[%clk 00:00:43]} {[%emt 00:00:07]} 31. Qxh4 {[%clk 00:01:38]} {[%emt
00:00:03]} Bg6 {[%clk 00:00:39]} {[%emt 00:00:06]} 32. Bd4 {[%clk 00:01:24]}
{[%emt 00:00:16]} Bf8 {[%clk 00:00:35]} {[%emt 00:00:06]} 33. Rc3 {[%clk
00:01:18]} {[%emt 00:00:07]} Be7 {[%clk 00:00:35]} {[%emt 00:00:02]} 34. Qf4
{[%clk 00:01:15]} {[%emt 00:00:03]} Ra8 {[%clk 00:00:32]} {[%emt 00:00:07]} 35.
Rdc1 {[%clk 00:01:10]} {[%emt 00:00:07]} Bd6 {[%clk 00:00:17]} {[%emt
00:00:17]} 36. Qh6 {[%clk 00:01:09]} {[%emt 00:00:02]} Be5 {[%clk 00:00:18]}
{[%emt 00:00:02]} 37. Bxe5 {[%clk 00:01:10]} {[%emt 00:00:01]} Rxe5 {[%clk
00:00:19]} 38. Rxc6 {[%clk 00:01:10]} {[%emt 00:00:02]} d4 {[%clk 00:00:15]}
{[%emt 00:00:07]} 39. Rxg6+ {[%clk 00:01:05]} {[%emt 00:00:07]} fxg6 {[%clk
00:00:16]} 40. Bxa8 {[%clk 00:01:05]} {[%emt 00:00:02]} dxe3 {[%clk 00:00:17]}
41. fxe3 {[%clk 00:00:59]} {[%emt 00:00:08]} Rxe3 {[%clk 00:00:15]} {[%emt
00:00:04]} 42. Bd5+ {[%clk 00:00:59]} {[%emt 00:00:02]} 1-0

[Event "Blixt-SM 2025"]
[Site "Norrköping, Sweden"]
[Date "2025.09.26"]
[Round "11.3"]
[White "Olsson, Linus"]
[Black "Smith, Axel"]
[Result "0-1"]
[TimeControl "3 min + 2 sec/move"]
[WhiteTitle "FM"]
[BlackTitle "GM"]
[WhiteElo "2166"]
[BlackElo "2431"]

1. d4 {[%clk 00:03:04]} {[%emt 00:05:10]} Nf6 {[%clk 00:03:04]} 2. c4 {[%clk
00:03:04]} {[%emt 00:00:01]} a6 {[%clk 00:03:05]} 3. g3 {[%clk 00:02:44]}
{[%emt 00:00:22]} c6 {[%clk 00:03:06]} {[%emt 00:00:01]} 4. Bg2 {[%clk
00:02:44]} {[%emt 00:00:02]} d5 {[%clk 00:03:08]} {[%emt 00:00:01]} 5. b3
{[%clk 00:02:42]} {[%emt 00:00:04]} Bf5 {[%clk 00:03:06]} {[%emt 00:00:03]} 6.
Nf3 {[%clk 00:02:40]} {[%emt 00:00:05]} h6 {[%clk 00:03:07]} {[%emt 00:00:01]}
7. O-O {[%clk 00:02:38]} {[%emt 00:00:03]} e6 {[%clk 00:03:08]} {[%emt
00:00:01]} 8. Bb2 {[%clk 00:02:33]} {[%emt 00:00:07]} Nbd7 {[%clk 00:03:07]}
{[%emt 00:00:03]} 9. Nbd2 {[%clk 00:02:31]} {[%emt 00:00:04]} Be7 {[%clk
00:03:07]} {[%emt 00:00:02]} 10. Re1 {[%clk 00:02:29]} {[%emt 00:00:03]} O-O
{[%clk 00:03:08]} {[%emt 00:00:02]} 11. Ne5 {[%clk 00:02:25]} {[%emt 00:00:07]}
Qc7 {[%clk 00:02:17]} {[%emt 00:00:52]} 12. Nxd7 {[%clk 00:02:13]} {[%emt
00:00:13]} Qxd7 {[%clk 00:02:13]} {[%emt 00:00:06]} 13. e4 {[%clk 00:02:14]}
{[%emt 00:00:02]} dxe4 {[%clk 00:02:14]} {[%emt 00:00:01]} 14. Nxe4 {[%clk
00:02:13]} {[%emt 00:00:02]} Nxe4 {[%clk 00:02:06]} {[%emt 00:00:11]} 15. Bxe4
{[%clk 00:02:13]} {[%emt 00:00:01]} Bxe4 {[%clk 00:02:07]} 16. Rxe4 {[%clk
00:02:14]} Rad8 {[%clk 00:02:02]} {[%emt 00:00:07]} 17. Qe2 {[%clk 00:02:06]}
{[%emt 00:00:10]} Bf6 {[%clk 00:02:01]} {[%emt 00:00:03]} 18. Rd1 {[%clk
00:01:56]} {[%emt 00:00:11]} Qc7 {[%clk 00:01:54]} {[%emt 00:00:10]} 19. h4
{[%clk 00:01:43]} {[%emt 00:00:15]} Qa5 {[%clk 00:01:51]} {[%emt 00:00:05]} 20.
Rf4 {[%clk 00:01:38]} {[%emt 00:00:07]} Qxa2 {[%clk 00:01:25]} {[%emt
00:00:29]} 21. Rxf6 {[%clk 00:01:37]} {[%emt 00:00:02]} gxf6 {[%clk 00:01:25]}
{[%emt 00:00:02]} 22. d5 {[%clk 00:01:32]} {[%emt 00:00:07]} e5 {[%clk
00:01:25]} {[%emt 00:00:02]} 23. Qg4+ {[%clk 00:01:09]} {[%emt 00:00:25]} Kh8
{[%clk 00:01:19]} {[%emt 00:00:08]} 24. Bc1 {[%clk 00:00:53]} {[%emt 00:00:19]}
Qc2 {[%clk 00:01:01]} {[%emt 00:00:20]} 25. d6 {[%clk 00:00:36]} {[%emt
00:00:19]} Qg6 {[%clk 00:00:52]} {[%emt 00:00:11]} 26. Qf3 {[%clk 00:00:34]}
{[%emt 00:00:04]} h5 {[%clk 00:00:36]} {[%emt 00:00:18]} 27. c5 {[%clk
00:00:34]} {[%emt 00:00:03]} Kg7 {[%clk 00:00:31]} {[%emt 00:00:06]} 28. d7
{[%clk 00:00:15]} {[%emt 00:00:21]} Qg4 {[%clk 00:00:30]} {[%emt 00:00:03]} 29.
Qd3 {[%clk 00:00:16]} Qe6 {[%clk 00:00:17]} {[%emt 00:00:15]} 30. Bb2 {[%clk
00:00:12]} {[%emt 00:00:06]} f5 {[%clk 00:00:12]} {[%emt 00:00:07]} 31. f4
{[%clk 00:00:12]} {[%emt 00:00:02]} f6 32. fxe5 fxe5 {[%clk 00:00:15]} 33. Qe3
{[%clk 00:00:13]} Kh7 {[%clk 00:00:13]} {[%emt 00:00:05]} 34. Rd6 {[%clk
00:00:13]} f4 {[%clk 00:00:09]} {[%emt 00:00:05]} 35. Qe4+ {[%clk 00:00:12]}
{[%emt 00:00:03]} Qf5 {[%clk 00:00:11]} 36. Qxf5+ Rxf5 {[%clk 00:00:12]} 37.
Bc3 {[%clk 00:00:08]} {[%emt 00:00:02]} Rf7 {[%clk 00:00:11]} {[%emt 00:00:02]}
38. Bxe5 {[%clk 00:00:08]} {[%emt 00:00:01]} fxg3 {[%clk 00:00:11]} {[%emt
00:00:03]} 39. Bxg3 {[%clk 00:00:09]} {[%emt 00:00:01]} Rdxd7 {[%clk 00:00:11]}
{[%emt 00:00:02]} 40. Re6 {[%clk 00:00:10]} {[%emt 00:00:01]} Rde7 {[%clk
00:00:12]} {[%emt 00:00:02]} 41. Rd6 {[%clk 00:00:10]} Rd7 {[%clk 00:00:13]} 42.
Re6 {[%clk 00:00:12]} Rg7 {[%clk 00:00:15]} 43. Kh2 {[%clk 00:00:12]} Rd2+
{[%clk 00:00:16]} 44. Kh3 {[%clk 00:00:13]} Rd3 {[%clk 00:00:17]} 0-1